Workbook

Sheet Disclaimer

Sheet INFO
A1: Intended use of this document Those responsible for the drafting of actual individual EPB standards shall - read and understand the following documents - prCEN/TS 16628 Basic Principles (in short "BP") - prCEN/TS 16629 Detailed Technical Rules (in short "DTR") - prEN 15603:2013 ("Overarching Standard", in short "OA")) - prCEN/TR 15615:2013 Technical report to overarching standard; - Prepare their individual EPB standard according to CEN rules, BP, DTR and OA - Prepare the accompanying technical report using the dedicated template - Prepare an accompanying XLS spreadsheet, to demonstrate inputs, output and calculation chain. This sample excel spreadsheet provides a template to help in this task.
A2: Why an Excel spradsheet? To demonstrate the validity and required data I/O for the calculation procedure defined in the standard: - list of all input needed --> sheet "Method_input" - list of intended output --> sheet "Method_output" - calculation sequence --> sheet "Method_calculation"
A3: The example is prepared for a simple procedure. The sheet calculation may need extensions such as: - using several columns when operating on arrays - refering to a subset of sheets input/calculation/output to describe a subroutine For complex tasks MACRO can be used. This sheet does not support calculation methods that take into account data in a different time-step than that that is being calculated. A version that allows taking into account values at previous time step will be developed.
A4: LIST OF AVAILABLE SHEETS
A5: Simplified_input_correlation Use this sheet to demontrate simplified input correlation, if any in your standard. Typically these correlations are defined in annex C of the standard. They provide the normal detailed input of a procedure, based on a simplified input data set.
A6: Product_descriptive_data Use this sheet to list product descriptive data (typically with case identifiers). Some examples of selection tables are given. The output from the selection tables (green cells) can be linked to the sheet "method_input" for use in the procedure.
A7: Product_tech_data Use this sheet to list product technical data (typically numerical values and data). Some examples are given with default that may be typically included in annex A of the standard. The output from the selection tables (green cells) can be linked to the sheet "method_input" for use in the procedure.
A8: Process_design_data Use this sheet to list system descriptive data (typically with case identifiers). Some examples of selection tables are given. The output from the selection tables (green cells) can be linked to the sheet "method_input" for use in the procedure.
A9: Data_catalogue_example It is an example of how a data catalogue can work, filtering the catalogue of product properties based on product descriptive data. You can optionally build a similar catalogue for products involved in your standard.
A10: Input_series Prepare in this sheet data for each time step if you want to test the procedure on more steps.
A11: Method_input List in this sheet all the input required for the calculation in one time step. THIS SHEET IS REQUIRED TO DEMONSTRATE THE REQUIRED DATA INPUT.
A12: Method_calculation Detail in this sheet your calculation procedure. There should be one calculation in one cell for each equation in the standard. THIS SHEET IS REQUIRED TO DEMONSTRATE THE CALCULATION PROCEDURE.
A13: Method_output List in this sheet all the intended output of the procedure. THIS SHEET IS REQUIRED TO DEMONSTRATE THE AVAILABLE DATA OUTPUT.
A14: Output_series Series alculation results are stored in this sheet. Calculation for each time step is launched in this sheet.

Sheet Simplified_input_correlation
A1: Create here a simulation of each correlation method in your Annex C
A4: Name | B4: Symbol | C4: Unit | D4: Value | E4: Range | F4: Formula ref. | G4: Formula | H4: Notes
A5: Input data
A6: Length of the building | B6: LL | C6: m | D6: 15 | E6: 4…100
A7: Width of the building | B7: LW | C7: m | D7: 10 | E7: 4…20
A8: Number of loors | B8: Nlev | C8: - | D8: 3 | E8: 1…10
A9: Floor heigth | B9: hfl | C9: m | D9: 2.9 | E9: 2…5
A10: Length | B10: lc | C10: m | D10: 0 | E10: 0 / 6 | H10: 0= outside shafts 6 = innner shafts
A12: linear thermal transmittance for insulated pipes in air | B12: Y | C12: W/(m∙K) | D12: 0.2 | E12: 0,05..0,5 | H12: Standard-Values
A13: inner diameter of pipe (without insulation) | B13: di | C13: m | D13: 0.02 | E13: 0,01…1,00
A14: outer diameter of pipe (with insulation) | B14: da | C14: m | D14: 0.06 | E14: 0,01…1,00
A15: thermal conductivity of insulation | B15: lD | C15: W/(m∙K) | D15: 0.04 | E15: 0,01..0,08
A17: thermal conductivity of embedded material | B17: lem | C17: W/(m∙K) | D17: 1 | E17: 0,01….5,0
A18: the depth of pipe from surface | B18: z | C18: m | D18: 0.15 | E18: 0,05..2,0
A19: thermal conductivity of the pipe material | B19: lP | C19: W/(m∙K) | D19: 380 | E19: 10..500
A20: inner diameter of the pipe | B20: dp,i | C20: m | D20: 0.019
A21: outer diameter of the pipe | B21: dp,a | C21: m | D21: 0.022
A22: specific heat of the pipe | B22: cp | C22: kWh/(kg∙K) | D22: 0.106 | E22: 0,02…0,25
A23: density of the pipe | B23: rp | C23: kg/m³ | D23: 8900 | E23: 1000…20000
A26: METHOD
A28: Heating/Cooling Space heating
A29: Length of connection of radiators to vertical shafts | B29: lA | C29: m | D29: =0.55*LL*D7*D8 -> 247.5
A30: Length of vertical shafts | B30: lS | C30: m | D30: =0.025*Method_in*D7*D8*D9 -> 32.625
A31: Length of base distributor/collector | B31: lV | C31: m | D31: =2*Method_in+0.01625*Method_in*D7*D7 -> 54.375
A32: max. Length of pipes in a circuit | B32: Lmax | C32: m | D32: =2*(LL+D7/2+D8*D9+D10) -> 57.4
A33: DHW
A34: Length of pipes in open circuitet stubs | B34: lA | C34: m | D34: =0.05*LL*D7*D8 -> 22.5
A35: Length of vertical shafts | B35: lS | C35: m | D35: =0.075*LL*D7*D8*D9 -> 97.875 | H35: Length with circulation loop * (0,5) without circulation loop
A36: Length of base distributor/collector | B36: lV | C36: m | D36: =2*LL+0.0125*LL*D7 -> 31.875 | H36: Length with circulation loop * (0,5) without circulation loop
A37: Max. Length of pipes in a circuit (circulation) | B37: Lmax | C37: m | D37: =2*(LL+D7/2+D8*D9+D10) -> 57.4
A39: correction factor for special design conditions of the distribution system | B39: fX,corr | D39: 1 | H39: Annex
A40: linear thermal transmittance for insulated pipes in air | B40: Y | C40: W/(m∙K) | D40: =3.1415/( 1/(2*D15)*LN(D14/D13)+1/(Method_input!D57*Simplified_input_correlation!D14)) -> 0.1986281357 | F40: Formula (3)
A41: linear thermal transmittance for insulated embedded pipes | B41: Yem | C41: W/(m∙K) | D41: =3.1419/(1/2*( 1/D15*LN(D14/D13)+1/D17*LN(4*D18/D14))) -> 0.2110932119 | F41: Formula (4)
A42: linear thermal transmittance for non insulated pipes | B42: Ynon | C42: W/(m∙K) | D42: =3.1415/( 1/(2*D19)*LN(D21/D20)+1/(Method_input!D58*Simplified_input_correlation!D21)) -> 0.9675245165 | F42: Formula (5) | H42: exact calculation
A43: linear thermal transmittance for non insulated pipes | B43: Ynon | C43: W/(m∙K) | D43: =Method_input!D58*Simplified_input_correlation!D21*3.1415 -> 0.967582 | F43: Formula (6) | H43: approximation
A45: Volume of pipes in open circuited stubs per zone | B45: VP | C45: m³ | D45: =D20^2*0.785*D34 -> 0.0063761625
A46: mass of pipe | B46: mP | C46: kg/m³ | D46: =D45*D23 -> 56.74784625
A47: factor for efficiency | B47: fX,e | D47: =(1.25+(0.2/(Method_calculation!D32))^0.5)*Simplified_input_correlation!D48 -> 4.331757301 | F47: Formula (23)
A48: factor for pump design selection | B48: b | D48: 1 | H48: constant
A49: constant depending on control system of the pump | B49: CP1 | D49: 0.9 | H49: HEAT_DISTR_CTRL_PMP 0 / 3 / 4
A50: constant depending on control system of the pump | B50: CP2 | D50: 0.1 | H50: HEAT_DISTR_CTRL_PMP 0 / 3 / 4
A51: expenditure energy factor of distribution pumps | B51: eX,dis | D51: =D47*(D49+D50*Method_calculation!D34^(-1)) -> 4.795425733 | F51: Formula (22)
A52: factor fEEI | B52: fEEI | D52: =Product_tech_data!A4/0.623 -> 0.4333868379 | F52: Formula (28)
A54: Output data
A55: Length of shafts | B55: lS | C55: m | E55: 0...∞
A56: diameter of shafts | B56: dS | C56: m | E56: 0…0,2
A57: Length of base ring | B57: lB | C57: m | E57: 0...∞
A58: diameter of base ring | B58: dB | C58: m | E58: 0…0,2

Sheet Product_descriptive_data
A1: Example of descriptive data. In a simple structure, this can be connected directly to the "method_input" sheet where this data is required. In this example spreadsheet the "Method_input" is linked to the "data_catalogue".
A6: Product descriptive data (qualitative)
A8: Boiler type, condensing / non condensing
A9: 3 | B9: BLR_TYPE | C9: =INDEX(C11:C13,A9) -> BLR_TYPE_STND
A11: Condensing | C11: BLR_TYPE_COND
A12: Low temperature | C12: BLR_TYPE_LTMP
A13: Standard | C13: BLR_TYPE_STND
A16: Boiler use
A17: 0 | B17: BLR_USE | C17: =INDEX(#REF!,A17) -> 

Sheet Product_tech_data
A1: EXAMPLE OF A SHEET WITH DEFAULT INPUT Create here a simulation of each default data formula given in annex A of the standard. Optionally connect the selected values to the detailed input data selection sheet (detailed input)
A4: 0.27

Sheet Process_design_data
A1: Example of process design data. In a simple structure, this can be connected directly to the "method_input" sheet where this data is required. In this example spreadsheet the "Method input" is linked to the detailed input.

Sheet Data_catalogue_example
A1: EXAMPLE OF A PRODUCT DATA CATALOGUE Product descriptive data is used to filter the actual catalogue. Unsuitable prioducts are indicated by "Non available" The desired product in the catalogue is then selected via the main list --> alla data is available with one click. NOTE: Default data are also part of the catalogue. This sample catalogue is connected to the "Method input" sheet. NOTE: This highlights the high importance of the user interface and of a correct data input structuring. | J1: DATA FOR EACH BOILER | W1: SELECTION OF BOILERS COMPATIBLE WITH THE QUALITATIVE DESCRIPTION
A4: Product technical data
A6: Pump energy efficiency index EEI
A7: 3 | C7: EEI | D7: =INDEX(D9:D11,A7) -> 0.3
A9: Heating | D9: 0.25
A10: Cooling | D10: 0.25
A11: Domestic hot water | D11: 0.3

Sheet Input_series
A1: Load here the value of input variables for each time-step (time series) Set the number of input data for each time steps and the number of time step before running The macro from sheet "Output series". Local constant data may be input via the sheets "Constants"
A3: Time series for data input
A4: Settings
A5: Number of input data | C5: 0
A6: Number of time steps | C6: 0

Sheet Method_input
A1: THIS IS A MANDATORY SHEET All input data for the method shall be listed here. In the simplest version, values for data input in column D (both green and blue background) may be inserted manually. Varying data (green background) can be fed from the "input_series" sheet. In this sample data sheet, product data (blue background) is linked to a sample catalogue built in the "Detailed_input" sheet
A4: Name | B4: Symbol | C4: Unit | D4: Value | E4: Range | F4: Origin | G4: Varying | H4: Notes
A5: Operating conditions data
A6: Input temperature of the heating emitters | B6: qH,em,in | C6: °C | D6: 68 | E6: 0..110 | F6: M3-5 | G6: YES
A7: Output temperature of the heating emitters | B7: qH,em,out | C7: °C | D7: 58 | E7: 0..110 | F7: M3-5 | G7: YES
A8: Flowrate in the heating circuit | C8: m³/h | D8: 3.5 | E8: 0…..µ | F8: M3-5 | G8: YES
A9: Input temperature of the cooling emitters | B9: qC,em,in | C9: °C | D9: 6 | E9: 0..110 | F9: M4-5 | G9: YES
A10: Output temperature of the cooling emitters | B10: qC,em,out | C10: °C | D10: 12 | E10: 0..110 | F10: M4-5 | G10: YES
A11: Flowrate in the cooling circuit | C11: m³/h | D11: 0.8 | E11: 0…..µ | F11: M4-5 | G11: YES
A12: Temperature of DHW | B12: qW | C12: °C | D12: 50 | E12: 30..70 | F12: M8-1 | G12: YES
A13: Temperature difference between hot water tapping temperature to the return temperature in a circulation loop system | B13: DqW | C13: K | D13: 5 | E13: 2..10 | F13: M8-1 | G13: YES | H13: only in circulation systems
A14: Calculation interval | B14: tci | C14: h | D14: 1 | E14: 1…8760 | F14: M1-9 | G14: YES
A15: Total time operation | B15: top | C15: h | D15: 1 | E15: 0…8760 | F15: M1-6 | G15: YES | H15: Sum
A16: Surrounding zone temperature in the calculation interval at heating period | B16: qah,H | C16: °C | D16: 13 | E16: -30…+30 | F16: M2-2 | G16: YES
A17: Surrounding zone temperature in the calculation interval at cooling period | B17: qah,C | C17: °C | D17: 22 | E17: -30…+30 | F17: M2-2 | G17: YES
A18: Surrounding zone temperature in the calculation interval at DHW period | B18: qah,W | C18: °C | D18: 13 | E18: -30…+30 | F18: M2-2 | G18: YES
A19: time after a tapping before next tapping | B19: tatap | C19: h | D19: 2 | E19: 0..24 | F19: M8-1 | G19: YES
A20: operation time of the distribution system | B20: tX,op | C20: h | D20: 1 | E20: 0…8760 | G20: YES
A23: Product data
A24: Product description data
A26: Product technical data
A28: System design data
A29: Process design
A30: Tapping profile | B30: ntap | C30: 1/h | D30: 0.5 | E30: 1..30 | F30: M8-1 | G30: YES
A31: number of operations of circulation pump | B31: nnom | C31: 1/d | D31: 2 | E31: 0…24 | F31: M8-1 | G31: YES
A32: average hot water temperature in circulation system without operation | B32: θW,avg | C32: °C | D32: 25 | E32: 20…70 | F32: M8-1 | G32: YES | H32: LOCAL or te be calculated
A33: resistance ratio of components in the piping system | B33: fcomp | D33: 0.3 | E33: 0…0,8 | H33: LOCAL
A34: pressure loss per length | B34: RX,max | C34: kPa/m | D34: 0.1 | E34: 0,05…0,50
A35: pressure losses of additional resistances | B35: DpX,add | C35: kPa | D35: 3 | E35: 0…100 | G35: YES
A36: calculated heat load of a zone | B36: FH,em.out | C36: kW | D36: 50 | E36: 1…..µ
A37: calculated heat load or cooling load of a zone | B37: FC,em.out | C37: kW | D37: 50 | E37: 1…..µ
A38: design temperature difference in the distribution circuit - heating | B38: DqH,dis,des | C38: K | D38: 15 | E38: 1…50
A39: design temperature difference in the distribution circuit - cooling | B39: DqC,dis,des | C39: K | D39: 6 | E39: 1…20
A40: design temperature difference in the circulation circuit | B40: DqW,circ | C40: K | D40: 5 | E40: 1…10
A42: Primary energy factor for thermal energy carrier | B42: fX,Y | D42: 1.1
A43: Primary energy factor for electrical energy carrier | B43: fX,Z | D43: 2.4
A46: Control type data
A47: type of flow rate control | B47: HEAT_DISTR_CTRL_PMP | E47: 0, 3, 4
A48: type of speed control | B48: HEAT_DISTR_CTRL | E48: 0, 2, 3
A51: Constants
A52: (specific heat ∙ density) of water | B52: cw∙rw | C52: kWh/(m³·K) | D52: 1.15
A53: Specific heat of water | B53: cw | C53: kWh/(kg∙K) | D53: 1.163
A54: Density of water | B54: rw | C54: kg/m³ | D54: 990
A55: Factor for pump selection | B55: b | C55: - | D55: 1 | H55: selection at design point
B56: b | C56: - | D56: 2 | H56: selection different from design point
A57: outer total surface coefficient of heat transfer (convection and radiation) | B57: ha | C57: W/(m²K) | D57: 8 | F57: Local | G57: NO | H57: value for insulated pipes
B58: ha | C58: W/(m²K) | D58: 14 | H58: value for uninsulated pipes

Sheet Method_calculation
A1: THIS IS A MANDATORY SHEET One time step calculation shall be described here. For each calculation step (= 1 row) data for the formula in column D shall be taken from the "Method_input" sheet or previous calculation steps. Include in the column "Formula ref" its number in the standard text. The example is based on EN 15316-4-1:2008 Copy and paste a copy of the equation into column "Formula" Use the column note for information on the calculation
A3: Description | B3: Symbol | C3: Unit | D3: Value | E3: Formula ref | F3: Formula | G3: Notes
A5: mean water temperature in the space heating distribution system | B5: θH,em,mean | C5: °C | D5: =(Method_in+Method_input!D7)/2 -> 63 | E5: Formula (1) | G5: Index X: heating H, cooling C, DHW W
A6: mean water temperature in the space cooling distribution system | B6: θC,em,mean | C6: °C | D6: =(Method_input!D9+Method_input!D10)/2 -> 9 | E6: Formula (1) | G6: Index X: heating H, cooling C, DHW W
A7: mean water temperature in the distribution system for DHW | B7: θW,em,mean | C7: °C | D7: =Method_input!D12-Method_input!D13/2 -> 47.5 | E7: Formula (2)
A8: thermal loss distribution system for space heating | B8: QH,dis,ls | C8: kWh | D8: =1/1000*Method_input!D15*Simplified_input_correlation!D12*(Method_calculation!D5-Method_input!D16)*Simplified_input_correlation!D31*Method_input!D14 -> 0.54375 | E8: Formula (7) | G8: thermal loss in timestep tci
A9: thermal loss (gain) distribution system for space cooling | B9: QC,dis,ls | C9: kWh | D9: =1/1000*Method_input!D15*Simplified_input_correlation!D12*(Method_calculation!D6-Method_input!D17)*Simplified_input_correlation!D29*Method_input!D15 -> -0.6435 | E9: Formula (7) | G9: thermal loss (gain) in timestep tci
A10: thermal loss distribution system for DHW | B10: QW,dis,ls | C10: kWh | D10: =1/1000*Method_input!D14*Simplified_input_correlation!D12*(Method_calculation!D7-Method_input!D18)*Simplified_input_correlation!D30*Method_input!D15 -> 0.2251125 | E10: Formula (7) | G10: thermal loss in timestep tci length of hotwater and circulation pipes
A11: mass flow of hot water in open circuited stubs | B11: mw,dis,stub | C11: kg/h | D11: =Simplified_input_correlation!D45*Method_input!D54*Method_input!D30 -> 3.156200437 | E11: Formula (9)
A12: additional thermal loss for distribution pipes with open circuited stubs | B12: QW,dis,stub | C12: kWh | D12: =D11*Method_input!D53* (Method_input!D12-Method_input!D18)*Method_input!D14 -> 135.814461 | E12: Formula (8)
A13: mass flow of hot water in pipes of the circulation system | B13: mw,dis,nom | C13: kg/h | D13: =1/24*Simplified_input_correlation!D45*Method_input!D54*Method_input!D31 -> 0.5260334063 | E13: Formula (11)
A14: thermal loss in circulation systems without operation | B14: Qw,dis,nom | C14: kWh | D14: =D13*Method_input!D53* (Method_input!D32-Method_input!D18)*Method_input!D14 -> 7.341322218 | E14: Formula (10)
A15: hot water temperature after a tapping during a time without operation | B15: qW,dis,atap | C15: °C | D15: =Method_input!D18+(Method_input!D12-Method_input!D18)*EXP(-D16) -> 31.86094589 | E15: Formula (12)
A16: exponent Ci for the calculation of the temperature drop after a tapping in section i | B16: Ci | D16: =(D17*Simplified_input_correlation!D34*Method_input!D19)/(Method_input!D53*Method_input!D54*Simplified_input_correlation!D45+Simplified_input_correlation!D22*Simplified_input_correlation!D46)*1/(Method_input!D12-Method_input!D18) -> 0.6738244835 | E16: Formula (13)
A17: heat flow rate per length | B17: qi | C17: W/m | D17: =Simplified_input_correlation!D12*(Method_input!D12-Method_input!D18) -> 7.4 | E17: Formula (14)
A18: part of recoverable thermal loss of distribution system | B18: fH,dis,rbl | D18: 0.65 | G18: assumption
A19: Recoverable thermal loss of the distribution system for heating in the zone | B19: QH,dis,rbl | C19: kWh | D19: =D8*D18 -> 0.3534375
A20: Input energy to the emission system | B20: QX,em | C20: kWh | D20: =Method_input!D8*Method_input!D52*(Method_in-Method_input!D7)*Method_input!D14 -> 40.25 | E20: Formula (37)
A21: thermal expenditure energy factor | B21: eX,dis | D21: =(D20+Method_calculation!D8)/(D20) -> 1.013509317 | E21: Formula (36)
A22: primary energy related expenditure energy factor | B22: eP,X,dis | D22: =(Method_input!D42*Method_calculation!D8+Method_input!D43*Method_calculation!D36)/D20 -> 0.0177686394 | E22: Formula (38)
A23: input thermal energy for distribution | B23: QH,dis,in | C23: kWh | D23: =D20+D8 -> 40.79375 | E23: Formula(39) | G23: or
A24: mean hot water temperature | B24: qW,avg | C24: °C | D24: =(Method_input!D12+Method_calculation!D15)/2 -> 40.93047294 | E24: Formula(15)
A25: mean temperature without operation simplified | B25: qW,em,mean | C25: °C | D25: =25*Simplified_input_correlation!D12^(-0.2) -> 34.49324154 | E25: Formula(16)
A28: Auxiliary energy
A29: differential pressure of a pipe system in a zone | B29: DpX,des | C29: kPa | D29: =(1+Method_input!D33)*Method_input!D34*Simplified_input_correlation!D32+Method_input!D35 -> 10.462 | E29: Formula (20) | G29: Index X: heating H, cooling C, DHW W
A30: flow at design point for space heating or cooling systems | C30: m³/h | D30: =Method_input!D37/(Method_input!D52*Method_input!D39) -> 7.246376812 | E30: Formula (21) | G30: Index X: heating H, cooling C, DHW W
A31: flow at design point for DHW systems | C31: m³/h | D31: =D10/(Method_input!D52*Method_input!D40) -> 0.03915 | E31: Formula (22)
A32: hydraulic design power of a circulation pump | B32: PX,hydr,des | C32: kW | D32: =D30*D29/3600 -> 0.02105877617 | E32: Formula (19) | G32: Index X: heating H, cooling C, DHW W
A33: auxiliary energy demand for a ribbon heater | B33: WW,dis,aux,rib | C33: kWh | D33: =D10 -> 0.2251125 | E33: Formula (19) | G33: calculation only with the length of hot water pipes and year
A34: mean part load of the distribution system | B34: bX,dis | D34: =Method_input!D8/Method_calculation!D30 -> 0.483 | E34: Formula (25) | G34: Index X: heating H, cooling C, DHW W
A35: hydraulic energy demand | B35: WX,dis,hydr | C35: kWh | D35: =D32*D34*Method_input!D20*Simplified_input_correlation!D39 -> 0.01017138889 | E35: Formula (24) | G35: Index X: heating H, cooling C, DHW W
A36: auxiliary energy demand | B36: WX,dis,aux | C36: kWh | D36: =D35*Simplified_input_correlation!D51 -> 0.04877614002 | E36: Formula (26) | G36: Index X: heating H, cooling C, DHW W
A37: Recoverable auxiliary energy of the distribution system for heating in the zone | B37: QX,dis,aux,rbl | C37: kWh | D37: =D36*0.25 -> 0.012194035 | E37: Formula (34) | G37: Index X: heating H, cooling C, DHW W
A38: Recovered auxiliary energy of the distribution system for heating in the zone | B38: QX,dis,aux,rvd | C38: kWh | D38: =D36*0.75 -> 0.03658210501 | E38: Formula (35) | G38: Index X: heating H, cooling C, DHW W
A39: Distribution pump in setback operation | B39: WX,dis,aux,setb | C39: kWh | D39: =D32*Method_input!D14 -> 0.02105877617 | E39: Formula(30) | G39: HEAT_DISTR_CTRL = 2
A40: Distribution pump in boost mode operation | B40: WX,dis,aux,setb | C40: kWh | D40: =3.3*D32*Method_input!D14 -> 0.06949396135 | E40: Formula(31) | G40: HEAT_DISTR_CTRL = 3
B44: LOCAL

Sheet Method_output
A1: THIS IS A MANDATORY SHEET Output of one step calculation shall be indicated here. Each cell in the column value shall be a reference to a single cell in the "Method_calculation" sheet. The macro will take the calculation step results and fill the values table in the "Output_series" sheet.
A3: Description | B3: Unit | D3: Value
A9: Name | B9: Symbol | C9: Unit | D9: Value | E9: Intended destination | F9: Notes
A10: Energy flow data
A11: Thermal loss of the distribution system for heating in the zone | B11: QH,dis,ls | C11: kWh | D11: =Method_calculation!D8 -> 0.54375 | E11: M3-1
A12: Thermal loss of the distribution system for cooling in the zone | B12: QC,dis,ls | C12: kWh | D12: =Method_calculation!D9 -> -0.6435 | E12: M3-1
A13: Thermal loss of the distribution system for DHW in the zone | B13: QW,dis,ls | C13: kWh | D13: =Method_calculation!D10 -> 0.2251125 | E13: M3-1
A16: Recoverable thermal loss of the distribution system for heating in the zone | B16: QH,dis,rbl | C16: kWh | D16: =Method_calculation!D19 -> 0.3534375 | E16: M3-1 | F16: Recoverable heat for heating
A17: Recoverable thermal loss of the distribution system for cooling in the zone | B17: QC,dis,rbl | C17: kWh | E17: M3-1 | F17: Recoverable heat for cooling
A18: Recoverable thermal loss of the distribution system for DHW in the zone | B18: QW,dis,rbl | C18: kWh | E18: M3-1 | F18: Recoverable heat for heating
A20: Recoverd thermal loss of the distribution system for heating in the zone | B20: QH,dis,rvd | C20: kWh | D20: =Method_calculation!D29 -> 10.462 | E20: M3-1 | F20: Recovered heat for heating
A21: Recovered thermal loss of the distribution system for cooling in the zone | B21: QC,dis,rvdl | C21: kWh | E21: M3-1 | F21: Recovered heat for heating
A22: Recovered thermal loss of the distribution system for DHW in the zone | B22: QW,dis,vd | C22: kWh | E22: M3-1 | F22: Recoverable heat for heating
A24: Auxiliary energy for distribution system heating in the zone | B24: WH,dis,aux | C24: kWh | D24: =Method_calculation!D29 -> 10.462 | E24: M3-1
A25: Auxiliary energy for distribution system cooling in the zone | B25: WC,dis,aux | C25: kWh | E25: M3-1
A26: Auxiliary energy for distribution system DHW in the zone | B26: WW,dis,aux | C26: kWh | E26: M3-1
A28: Recoverable auxiliary energy for distribution system heating in the zone | B28: WH,dis,rbl | C28: kWh | E28: M3-1
A29: Recoverable auxiliary energy for distribution system cooling in the zone | B29: WC,dis,rbl | C29: kWh | E29: M3-1
A30: Recoverable auxiliary energy for distribution system DHW in the zone | B30: WW,dis,rbl | C30: kWh | E30: M3-1
A35: Operating condition data
A36: Flow rate
A37: Temperature 1
A38: Temperature 2
A39: Other data

Sheet Output_series
A1: Here a time series can be generated to test the method with variable input data. Data input series must be inserted in the "input_series" sheet before.
A3: Time series for data output
A4: Settings
A5: Number of output data | C5: 3
A7: This table will be filled automatically via a macro scanning the "input_series" and performing for each time step the calculation defined in the "Method_calculation" sheet.
A8: Press CLEAR OUTPUT to reset output series
A9: Press "Run method" to start calculation of individual time steps
B13: Generation input | C13: Recoverable heat | D13: Total auxiliary energy
B14: kWh | C14: kWh | D14: kWh
A15: Symbol | B15: EH,gen,in | C15: QH,gen,rbl | D15: WH,gnr,aux
A16: Destination
A17: Time stamp | D17: VALUES
A18: 1 | B18: 35119.50201 | C18: 88.38830587 | D18: 162.1294557
A19: 2 | B19: 27399.8283 | C19: 75.71823369 | D19: 118.613184
A20: 3 | B20: 13191.76547 | C20: 60.72604857 | D20: 40.69338682
A21: 4 | B21: 5665.134279 | C21: 50.54554548 | D21: 23.16807784
A22: 5 | B22: 2456.49297 | C22: 49.98223197 | D22: 15.65723114
A23: 6 | B23: 1921.719419 | C23: 49.88834639 | D23: 14.40542335
A24: 7 | B24: 1600.855288 | C24: 49.83201504 | D24: 13.65433868
A25: 8 | B25: 2028.674129 | C25: 49.90712351 | D25: 14.65578491
A26: 9 | B26: 8920.012357 | C26: 59.9749639 | D26: 30.67892455
A27: 10 | B27: 17577.66739 | C27: 71.52202179 | D27: 62.66369192
A28: 11 | B28: 23091.03519 | C28: 83.25960243 | D28: 93.74674309
A29: 12 | B29: 30817.48386 | C29: 96.16815042 | D29: 137.2630147

Sheet History
B2: Date | C2: Version scope | D2: Changes, notes
B4: 2012-07-04 | C4: Issued for discussion in CTL
B5: 2012-08-24 | C5: Issued for comments in TC 371 | D5: Improved readability
B6: 2013-07-03 | C6: Revised for the toolkit
